{"text_format":"1","workbook":"xlsx","n_sheets":5,"sheets":["Notes","Summary","ICB","Organisations","BS"],"not_rendered":{"charts":0,"images":0,"macros":1,"external_links":0,"defined_names":4,"comments":0,"pivot_tables":0},"unopened":[],"bounds":{"document_bytes":16777216,"sheet_cells":100000,"rows_first":2000,"rows_last":500,"rows_between":2000,"halvings":0,"cell_chars":16384,"cell_head_chars":4096},"cells_cut":0,"cells_raw":0,"read":"whole","date_system":"1900"}

{"sheet":"Notes","index":0,"n_rows":2,"n_cols":8,"rows_kept":2,"cut":false,"hidden":false,"merged":[[1,1,1,4]]}
[]
[null,"Post-COVID clinic Friends and Family Test (FFT) data - August 2023",null,null,null,null,null,"  Show data for:"]

{"sheet":"Summary","index":1,"n_rows":7,"n_cols":10,"rows_kept":7,"cut":false,"hidden":false,"merged":[[2,1,3,1],[2,4,2,5],[2,6,2,7],[2,8,2,9]]}
[]
[]
[null,"FFT","Number of organisations submitting","Total responses to date","Responses",null,"Percentage Positive",null,"Percentage Negative"]
[null,null,"2023-08-01","2023-08-01","2023-08-01","2023-07-27","2023-08-01","2023-07-27","2023-08-01","2023-07-27"]
[null,"Post Covid Q1",71,22445,1245,1431,0.96947791164658637,0.96505939902166316,1.1244979919678716E-2,1.3976240391334731E-2]
[null,"Post Covid Q2",71,11835,478,488,0.94769874476987448,0.95696721311475408,5.2301255230125521E-2,4.3032786885245901E-2]
[null,"Post Covid Q3",71,12302,510,500,0.99607843137254903,0.99199999999999999,3.9215686274509803E-3,8.0000000000000002E-3]

{"sheet":"ICB","index":2,"n_rows":49,"n_cols":24,"rows_kept":49,"cut":false,"hidden":false,"merged":[[2,15,2,17],[3,15,3,17],[3,12,4,12],[3,13,4,13],[3,14,4,14],[2,0,4,0],[2,1,4,1],[2,2,2,4],[2,5,2,10],[2,11,2,14],[3,2,4,2],[3,3,4,3],[3,4,4,4],[3,5,3,10],[3,11,4,11],[3,18,4,18],[3,19,4,19],[3,20,4,20],[3,21,3,23],[2,18,2,20],[2,21,2,23]]}
[]
[]
["ICB Code","ICB Name","Question 1",null,null,"Question 1",null,null,null,null,null,"Question 2",null,null,null,"Question 2",null,null,"Question 3",null,null,"Question 3"]
[null,null,"Total Responses","Percentage Positive","Percentage Negative","Breakdown of Responses",null,null,null,null,null,"Total Responses","Total Eligible","Percentage Positive","Percentage Negative","Breakdown of Responses",null,null,"Total Responses","Percentage Positive","Percentage Negative","Breakdown of Responses"]
[null,null,null,null,null,"Very Good","Good","Neither Good nor Poor","Poor","Very Poor","Don't Know",null,null,null,null,"Yes definitely","Yes to some extent","No",null,null,null,"Yes definitely","Yes to some extent","No"]
[null,"England",1245,0.96947791164658637,1.1244979919678716E-2,1087,120,17,7,7,7,478,2238,0.94769874476987448,5.2301255230125521E-2,414,39,25,510,0.99607843137254903,3.9215686274509803E-3,493,15,2]
[null,"Selection (excluding suppressed data)",{"$f":"SUBTOTAL(9,C8:C61)","v":1245},{"$f":"IFERROR((F7+G7)/SUM(F7:K7), \"-\")","v":0.97001620745542949},{"$f":"IFERROR((I7+J7)/SUM(F7:K7), \"-\")","v":1.0534846029173419E-2},{"$f":"SUBTOTAL(9,F8:F61)","v":1078},119,17,7,6,7,478,2238,{"$f":"IFERROR((P7+Q7)/SUM(P7:R7), \"-\")","v":0.94692144373673037},{"$f":"IFERROR(R7/SUM(P7:R7), \"-\")","v":5.3078556263269641E-2},408,38,25,{"$f":"SUBTOTAL(9,S8:S61)","v":510},{"$f":"IFERROR((V7+W7)/SUM(V7:X7), \"-\")","v":0.99603174603174605},{"$f":"IFERROR(X7/SUM(V7:X7), \"-\")","v":3.968253968253968E-3},{"$f":"SUBTOTAL(9,V8:V61)","v":489},13,2]
["QE1","LANCASHIRE AND SOUTH CUMBRIA ICB",1,"*","*","*","*","*","*","*","*",1,0,"*","*","*","*","*",1,"*","*","*","*","*"]
["QF7","SOUTH YORKSHIRE ICB",6,1,0,3,3,0,0,0,0,5,0,1,0,5,0,0,5,1,0,5,0,0]
["QGH","HEREFORDSHIRE AND WORCESTERSHIRE ICB",0,"NA","NA",0,0,0,0,0,0,0,0,"NA","NA",0,0,0,0,"NA","NA",0,0,0]
["QH8","MID AND SOUTH ESSEX ICB",0,"NA","NA",0,0,0,0,0,0,0,0,"NA","NA",0,0,0,0,"NA","NA",0,0,0]
["QHG","BEDFORDSHIRE, LUTON AND MILTON KEYNES ICB",26,0.96153846153846156,0,22,3,1,0,0,0,26,80,0.96153846153846156,3.8461538461538464E-2,23,2,1,26,1,0,25,1,0]
["QHL","BIRMINGHAM AND SOLIHULL ICB",21,1,0,18,3,0,0,0,0,21,0,1,0,21,0,0,21,1,0,21,0,0]
["QHM","NORTH EAST AND NORTH CUMBRIA ICB",19,0.94736842105263153,0,16,2,0,0,0,1,9,46,1,0,8,1,0,9,1,0,9,0,0]
["QJ2","DERBY AND DERBYSHIRE ICB",17,0.88235294117647056,0,11,4,1,0,0,1,17,0,1,0,12,5,0,17,1,0,12,5,0]
["QJG","SUFFOLK AND NORTH EAST ESSEX ICB",759,0.98287220026350464,7.9051383399209481E-3,690,56,4,2,4,3,119,119,0.84033613445378152,0.15966386554621848,100,0,19,150,0.99333333333333329,6.6666666666666671E-3,149,0,1]
["QJK","DEVON ICB",6,1,0,6,0,0,0,0,0,6,6,1,0,6,0,0,6,1,0,6,0,0]
["QJM","LINCOLNSHIRE ICB",13,1,0,12,1,0,0,0,0,13,309,1,0,12,1,0,13,1,0,13,0,0]
["QK1","LEICESTER, LEICESTERSHIRE AND RUTLAND ICB",5,1,0,5,0,0,0,0,0,0,49,"NA","NA",0,0,0,0,"NA","NA",0,0,0]
["QKK","SOUTH EAST LONDON ICB",5,0.8,0.2,"*","*","*","*","*","*",5,132,1,0,"*","*","*",5,1,0,"*","*","*"]
["QKS","KENT AND MEDWAY ICB",0,"NA","NA",0,0,0,0,0,0,0,0,"NA","NA",0,0,0,0,"NA","NA",0,0,0]
["QM7","HERTFORDSHIRE AND WEST ESSEX ICB",7,0.8571428571428571,0.14285714285714285,5,1,0,0,1,0,7,0,0.8571428571428571,0.14285714285714285,5,1,1,7,1,0,6,1,0]
["QMF","NORTH EAST LONDON ICB",22,0.90909090909090906,4.5454545454545456E-2,16,4,1,1,0,0,17,175,1,0,15,2,0,17,0.94117647058823528,5.8823529411764705E-2,16,0,1]
["QMJ","NORTH CENTRAL LONDON ICB",0,"NA","NA",0,0,0,0,0,0,0,0,"NA","NA",0,0,0,0,"NA","NA",0,0,0]
["QMM","NORFOLK AND WAVENEY ICB",37,0.97297297297297303,0,32,4,1,0,0,0,2,0,"*","*",2,0,0,2,"*","*",2,0,0]
["QNC","STAFFORDSHIRE AND STOKE-ON-TRENT ICB",7,0.8571428571428571,0,6,0,1,0,0,0,6,0,1,0,5,1,0,6,1,0,6,0,0]
["QNQ","FRIMLEY ICB",0,"NA","NA",0,0,0,0,0,0,0,0,"NA","NA",0,0,0,0,"NA","NA",0,0,0]
["QNX","SUSSEX ICB",5,0.4,0,2,0,2,0,0,1,4,4,"*","*",2,2,0,4,"*","*",4,0,0]
["QOC","SHROPSHIRE, TELFORD AND WREKIN ICB",0,"NA","NA",0,0,0,0,0,0,0,0,"NA","NA",0,0,0,0,"NA","NA",0,0,0]
["QOP","GREATER MANCHESTER ICB",0,"NA","NA",0,0,0,0,0,0,0,48,"NA","NA",0,0,0,0,"NA","NA",0,0,0]
["QOQ","HUMBER AND NORTH YORKSHIRE ICB",8,1,0,6,2,0,0,0,0,8,6,0.875,0.125,6,1,1,7,1,0,7,0,0]
["QOX","BATH AND NORTH EAST SOMERSET, SWINDON AND WILTSHIRE ICB",11,1,0,9,2,0,0,0,0,11,171,1,0,8,3,0,11,1,0,11,0,0]
["QPM","NORTHAMPTONSHIRE ICB",0,"NA","NA",0,0,0,0,0,0,0,0,"NA","NA",0,0,0,0,"NA","NA",0,0,0]
["QR1","GLOUCESTERSHIRE ICB",28,0.8928571428571429,3.5714285714285712E-2,21,4,1,1,0,1,26,0,1,0,23,3,0,27,1,0,27,0,0]
["QRL","HAMPSHIRE AND ISLE OF WIGHT ICB",27,1,0,27,0,0,0,0,0,6,957,1,0,4,2,0,6,1,0,6,0,0]
["QRV","NORTH WEST LONDON ICB",5,1,0,4,1,0,0,0,0,5,32,1,0,5,0,0,5,1,0,5,0,0]
["QSL","SOMERSET ICB",0,"NA","NA",0,0,0,0,0,0,0,0,"NA","NA",0,0,0,0,"NA","NA",0,0,0]
["QT1","NOTTINGHAM AND NOTTINGHAMSHIRE ICB",0,"NA","NA",0,0,0,0,0,0,0,3,"NA","NA",0,0,0,0,"NA","NA",0,0,0]
["QT6","CORNWALL AND THE ISLES OF SCILLY ICB",21,1,0,18,3,0,0,0,0,19,0,1,0,17,2,0,19,1,0,19,0,0]
["QU9","BUCKINGHAMSHIRE, OXFORDSHIRE AND BERKSHIRE WEST ICB",80,0.97499999999999998,0,67,11,2,0,0,0,80,2,1,0,79,1,0,80,1,0,80,0,0]
["QUA","BLACK COUNTRY ICB",1,"*","*","*","*","*","*","*","*",1,1,"*","*","*","*","*",0,"NA","NA","*","*","*"]
["QUE","CAMBRIDGESHIRE AND PETERBOROUGH ICB",9,0.88888888888888884,0.1111111111111111,6,2,0,1,0,0,8,33,1,0,7,1,0,9,1,0,8,1,0]
["QUY","BRISTOL, NORTH SOMERSET AND SOUTH GLOUCESTERSHIRE ICB",0,"NA","NA",0,0,0,0,0,0,0,0,"NA","NA",0,0,0,0,"NA","NA",0,0,0]
["QVV","DORSET ICB",26,0.76923076923076927,0.11538461538461539,10,10,3,2,1,0,26,0,0.88461538461538458,0.11538461538461539,15,8,3,26,1,0,22,4,0]
["QWE","SOUTH WEST LONDON ICB",9,1,0,9,0,0,0,0,0,9,0,1,0,9,0,0,6,1,0,6,0,0]
["QWO","WEST YORKSHIRE ICB",20,1,0,19,1,0,0,0,0,16,43,1,0,15,1,0,20,1,0,19,1,0]
["QWU","COVENTRY AND WARWICKSHIRE ICB",4,"*","*","*","*","*","*","*","*",0,8,"NA","NA","*","*","*",0,"NA","NA","*","*","*"]
["QXU","SURREY HEARTLANDS ICB",0,"NA","NA",0,0,0,0,0,0,0,5,"NA","NA",0,0,0,0,"NA","NA",0,0,0]
["QYG","CHESHIRE AND MERSEYSIDE ICB",40,1,0,38,2,0,0,0,0,5,9,1,0,4,1,0,5,1,0,5,0,0]

{"sheet":"Organisations","index":3,"n_rows":78,"n_cols":33,"rows_kept":78,"cut":false,"hidden":false,"merged":[[2,0,4,0],[2,1,4,1],[2,2,4,2],[2,3,2,5],[2,6,2,11],[2,16,2,18],[2,19,2,21],[2,22,2,24],[2,25,3,32],[3,3,4,3],[3,4,4,4],[3,5,4,5],[3,6,3,11],[3,12,4,12],[3,13,4,13],[2,12,2,15],[3,14,4,14],[3,15,4,15],[3,16,3,18],[3,19,4,19],[3,20,4,20],[3,21,4,21],[3,22,3,24]]}
[]
[]
["ICB Code","Trust Code","Trust Name","Question 1",null,null,"Question 1",null,null,null,null,null,"Question 2",null,null,null,"Question 2",null,null,"Question 3",null,null,"Question 3",null,null,"Mode of Collection - Question 1"]
[null,null,null,"Total Responses","Percentage Positive","Percentage Negative","Breakdown of Responses",null,null,null,null,null,"Total Responses","Total Eligible","Percentage Positive","Percentage Negative","Breakdown of Responses",null,null,"Total Responses","Percentage Positive","Percentage Negative","Breakdown of Responses"]
[null,null,null,null,null,null,"Very Good","Good","Neither Good nor Poor","Poor","Very Poor","Don't Know",null,null,null,null,"Yes definitely","Yes to some extent","No",null,null,null,"Yes definitely","Yes to some extent","No","SMS","Smartphone","Smartphone After","Paper","Paper After","Telephone","Online","Other"]
[null,null,"England",1245,0.96947791164658637,1.1244979919678716E-2,1087,120,17,7,7,7,478,2238,0.94769874476987448,5.2301255230125521E-2,414,39,25,510,0.99607843137254903,3.9215686274509803E-3,493,15,2,61,12,4,32,106,21,1009,0]
[null,null,"Selection (excluding suppressed data)",{"$f":"SUBTOTAL(9,D8:D883)","v":1245},{"$f":"IFERROR((G7+H7)/SUM(G7:L7), \"-\")","v":0.97294860234445446},{"$f":"IFERROR((J7+K7)/SUM(G7:L7), \"-\")","v":1.0820559062218215E-2},{"$f":"SUBTOTAL(9,G8:G883)","v":978},101,12,6,6,6,478,2238,{"$f":"IFERROR((Q7+R7)/SUM(Q7:S7), \"-\")","v":0.92705167173252279},{"$f":"IFERROR(S7/SUM(Q7:S7), \"-\")","v":7.29483282674772E-2},{"$f":"SUBTOTAL(9,Q8:Q883)","v":276},{"$f":"SUBTOTAL(9,R8:R883)","v":29},{"$f":"SUBTOTAL(9,S8:S883)","v":24},{"$f":"SUBTOTAL(9,T8:T883)","v":510},{"$f":"IFERROR((W7+X7)/SUM(W7:Y7), \"-\")","v":0.99782608695652175},{"$f":"IFERROR(Y7/SUM(W7:Y7), \"-\")","v":2.1739130434782609E-3},{"$f":"SUBTOTAL(9,W8:W883)","v":444},15,1,47,7,4,29,21,21,980,0]
["QE1","RW5","LANCASHIRE & SOUTH CUMBRIA NHS FOUNDATION TRUST",1,"*","*","*","*","*","*","*","*",1,0,"*","*","*","*","*",1,"*","*","*","*","*","*","*","*","*","*","*","*","*"]
["QF7","RXE","ROTHERHAM DONCASTER AND SOUTH HUMBER NHS FOUNDATION TRUST",0,"NA","NA",0,0,0,0,0,0,0,0,"NA","NA",0,0,0,0,"NA","NA",0,0,0,0,0,0,0,0,0,0,0]
["QF7","RHQ","SHEFFIELD TEACHING HOSPITALS NHS FOUNDATION TRUST",6,1,0,3,3,0,0,0,0,5,0,1,0,5,0,0,5,1,0,5,0,0,6,0,0,0,0,0,0,0]
["QF7","RFR","THE ROTHERHAM NHS FOUNDATION TRUST",0,"NA","NA",0,0,0,0,0,0,0,0,"NA","NA",0,0,0,0,"NA","NA",0,0,0,0,0,0,0,0,0,0,0]
["QHG","RD8","MILTON KEYNES UNIVERSITY HOSPITAL NHS FOUNDATION TRUST",26,0.96153846153846156,0,22,3,1,0,0,0,26,80,0.96153846153846156,3.8461538461538464E-2,23,2,1,26,1,0,25,1,0,0,0,0,0,0,0,26,0]
["QHL","RYW","BIRMINGHAM COMMUNITY HEALTHCARE NHS FOUNDATION TRUST",21,1,0,18,3,0,0,0,0,21,0,1,0,21,0,0,21,1,0,21,0,0,0,0,0,21,0,0,0,0]
["QHM","RXP","COUNTY DURHAM AND DARLINGTON NHS FOUNDATION TRUST",0,"NA","NA",0,0,0,0,0,0,0,0,"NA","NA",0,0,0,0,"NA","NA",0,0,0,0,0,0,0,0,0,0,0]
["QHM","RR7","GATESHEAD HEALTH NHS FOUNDATION TRUST",0,"NA","NA",0,0,0,0,0,0,0,6,"NA","NA",0,0,0,0,"NA","NA",0,0,0,0,0,0,0,0,0,0,0]
["QHM","RNN","NORTH CUMBRIA INTEGRATED CARE NHS FOUNDATION TRUST",5,0.8,0,2,2,0,0,0,1,4,11,"*","*","*","*","*",4,"*","*","*","*","*",0,0,0,0,5,0,0,0]
["QHM","RVW","NORTH TEES AND HARTLEPOOL NHS FOUNDATION TRUST",9,1,0,9,0,0,0,0,0,0,0,"NA","NA",0,0,0,0,"NA","NA",0,0,0,3,0,0,6,0,0,0,0]
["QHM","RTF","NORTHUMBRIA HEALTHCARE NHS FOUNDATION TRUST",0,"NA","NA",0,0,0,0,0,0,0,29,"NA","NA",0,0,0,0,"NA","NA",0,0,0,0,0,0,0,0,0,0,0]
["QHM","RTR","SOUTH TEES HOSPITALS NHS FOUNDATION TRUST",2,"*","*","*","*","*","*","*","*",2,0,"*","*","*","*","*",2,"*","*","*","*","*","*","*","*","*","*","*","*","*"]
["QHM","R0B","SOUTH TYNESIDE AND SUNDERLAND NHS FOUNDATION TRUST",3,"*","*","*","*","*","*","*","*",3,0,"*","*","*","*","*",3,"*","*","*","*","*","*","*","*","*","*","*","*","*"]
["QHM","RTD","THE NEWCASTLE UPON TYNE HOSPITALS NHS FOUNDATION TRUST",0,"NA","NA",0,0,0,0,0,0,0,0,"NA","NA",0,0,0,0,"NA","NA",0,0,0,0,0,0,0,0,0,0,0]
["QJ2","RY8","DERBYSHIRE COMMUNITY HEALTH SERVICES NHS FOUNDATION TRUST",17,0.88235294117647056,0,11,4,1,0,0,1,17,0,1,0,12,5,0,17,1,0,12,5,0,17,0,0,0,0,0,0,0]
["QJG","NQA","PROVIDE",759,0.98287220026350464,7.9051383399209481E-3,690,56,4,2,4,3,119,119,0.84033613445378152,0.15966386554621848,100,0,19,150,0.99333333333333329,6.6666666666666671E-3,149,0,1,0,0,0,0,0,0,759,0]
["QJK","NR5","LIVEWELL SOUTHWEST",6,1,0,6,0,0,0,0,0,6,6,1,0,6,0,0,6,1,0,6,0,0,0,0,0,0,0,0,6,0]
["QJM","RY5","LINCOLNSHIRE COMMUNITY HEALTH SERVICES NHS TRUST",13,1,0,12,1,0,0,0,0,13,309,1,0,12,1,0,13,1,0,13,0,0,0,0,0,0,0,13,0,0]
["QK1","RWE","UNIVERSITY HOSPITALS OF LEICESTER NHS TRUST",5,1,0,5,0,0,0,0,0,0,49,"NA","NA",0,0,0,0,"NA","NA",0,0,0,0,5,0,0,0,0,0,0]
["QKK","RJ1","GUY'S AND ST THOMAS' NHS FOUNDATION TRUST",5,0.8,0.2,"*","*","*","*","*","*",5,29,1,0,"*","*","*",5,1,0,3,2,0,"*","*","*","*","*","*","*","*"]
["QKK","RJZ","KING'S COLLEGE HOSPITAL NHS FOUNDATION TRUST",0,"NA","NA",0,0,0,0,0,0,0,103,"NA","NA",0,0,0,0,"NA","NA",0,0,0,0,0,0,0,0,0,0,0]
["QM7","RY4","HERTFORDSHIRE COMMUNITY NHS TRUST",7,0.8571428571428571,0.14285714285714285,5,1,0,0,1,0,7,0,0.8571428571428571,0.14285714285714285,5,1,1,7,1,0,6,1,0,0,0,0,0,0,0,7,0]
["QMF","RWK","EAST LONDON NHS FOUNDATION TRUST",0,"NA","NA",0,0,0,0,0,0,0,153,"NA","NA",0,0,0,0,"NA","NA",0,0,0,0,0,0,0,0,0,0,0]
["QMF","RQX","HOMERTON HEALTHCARE NHS FOUNDATION TRUST",18,0.94444444444444442,5.5555555555555552E-2,16,1,0,1,0,0,17,17,1,0,"*","*","*",17,0.94117647058823528,5.8823529411764705E-2,"*","*","*",18,0,0,0,0,0,0,0]
["QMF","Y05455","NELFT OOH",4,"*","*","*","*","*","*","*","*",0,5,"NA","NA",0,0,0,0,"NA","NA",0,0,0,"*","*","*","*","*","*","*","*"]
["QMJ","RRV","UNIVERSITY COLLEGE LONDON HOSPITALS NHS FOUNDATION TRUST",0,"NA","NA",0,0,0,0,0,0,0,0,"NA","NA",0,0,0,0,"NA","NA",0,0,0,0,0,0,0,0,0,0,0]
["QMM","RY3","NORFOLK COMMUNITY HEALTH AND CARE NHS TRUST",37,0.97297297297297303,0,32,4,1,0,0,0,2,0,"*","*","*","*","*",2,"*","*","*","*","*",0,0,0,0,0,0,37,0]
["QNC","RRE","MIDLANDS PARTNERSHIP NHS FOUNDATION TRUST",7,0.8571428571428571,0,6,0,1,0,0,0,6,0,1,0,5,1,0,6,1,0,6,0,0,0,0,0,0,0,7,0,0]
["QNX","RXC","EAST SUSSEX HEALTHCARE NHS TRUST",1,"*","*","*","*","*","*","*","*",0,0,"NA","NA",0,0,0,0,"NA","NA",0,0,0,"*","*","*","*","*","*","*","*"]
["QNX","RDR","SUSSEX COMMUNITY NHS FOUNDATION TRUST",4,"*","*","*","*","*","*","*","*",4,4,"*","*","*","*","*",4,"*","*","*","*","*","*","*","*","*","*","*","*","*"]
["QOC","R1D","SHROPSHIRE COMMUNITY HEALTH NHS TRUST",0,"NA","NA",0,0,0,0,0,0,0,0,"NA","NA",0,0,0,0,"NA","NA",0,0,0,0,0,0,0,0,0,0,0]
["QOP","RMC","BOLTON NHS FOUNDATION TRUST",0,"NA","NA",0,0,0,0,0,0,0,0,"NA","NA",0,0,0,0,"NA","NA",0,0,0,0,0,0,0,0,0,0,0]
["QOP","R0A","MANCHESTER UNIVERSITY NHS FOUNDATION TRUST",0,"NA","NA",0,0,0,0,0,0,0,42,"NA","NA",0,0,0,0,"NA","NA",0,0,0,0,0,0,0,0,0,0,0]
["QOP","RM3","NORTHERN CARE ALLIANCE NHS FOUNDATION TRUST",0,"NA","NA",0,0,0,0,0,0,0,0,"NA","NA",0,0,0,0,"NA","NA",0,0,0,0,0,0,0,0,0,0,0]
["QOP","RMP","TAMESIDE AND GLOSSOP INTEGRATED CARE NHS FOUNDATION TRUST",0,"NA","NA",0,0,0,0,0,0,0,6,"NA","NA",0,0,0,0,"NA","NA",0,0,0,0,0,0,0,0,0,0,0]
["QOP","RRF","WRIGHTINGTON, WIGAN AND LEIGH NHS FOUNDATION TRUST",0,"NA","NA",0,0,0,0,0,0,0,0,"NA","NA",0,0,0,0,"NA","NA",0,0,0,0,0,0,0,0,0,0,0]
["QOQ","NNF","CITY HEALTH CARE PARTNERSHIP CIC",4,"*","*","*","*","*","*","*","*",4,0,"*","*","*","*","*",4,"*","*","*","*","*","*","*","*","*","*","*","*","*"]
["QOQ","RJL","NORTHERN LINCOLNSHIRE AND GOOLE NHS FOUNDATION TRUST",0,"NA","NA",0,0,0,0,0,0,0,0,"NA","NA",0,0,0,0,"NA","NA",0,0,0,0,0,0,0,0,0,0,0]
["QOQ","RCB","YORK AND SCARBOROUGH TEACHING HOSPITALS NHS FOUNDATION TRUST",4,"*","*","*","*","*","*","*","*",4,6,"*","*","*","*","*",3,"*","*","*","*","*","*","*","*","*","*","*","*","*"]
["QOX","AXG","WILTSHIRE HEALTH & CARE",11,1,0,9,2,0,0,0,0,11,171,1,0,8,3,0,11,1,0,11,0,0,2,0,4,0,0,1,4,0]
["QPM","RP1","NORTHAMPTONSHIRE HEALTHCARE NHS FOUNDATION TRUST",0,"NA","NA",0,0,0,0,0,0,0,0,"NA","NA",0,0,0,0,"NA","NA",0,0,0,0,0,0,0,0,0,0,0]
["QR1","RTQ","GLOUCESTERSHIRE HEALTH AND CARE NHS FOUNDATION TRUST",28,0.8928571428571429,3.5714285714285712E-2,21,4,1,1,0,1,26,0,1,0,23,3,0,27,1,0,27,0,0,0,0,0,0,0,0,28,0]
["QRL","R1F","ISLE OF WIGHT NHS TRUST",11,1,0,11,0,0,0,0,0,0,0,"NA","NA",0,0,0,0,"NA","NA",0,0,0,0,0,0,0,11,0,0,0]
["QRL","R1C","SOLENT NHS TRUST",10,1,0,10,0,0,0,0,0,0,0,"NA","NA",0,0,0,0,"NA","NA",0,0,0,0,0,0,0,0,0,10,0]
["QRL","RW1","SOUTHERN HEALTH NHS FOUNDATION TRUST",6,1,0,6,0,0,0,0,0,6,957,1,0,4,2,0,6,1,0,6,0,0,0,0,0,0,0,0,6,0]
["QRV","RYJ","IMPERIAL COLLEGE HEALTHCARE NHS TRUST",5,1,0,4,1,0,0,0,0,5,32,1,0,5,0,0,5,1,0,5,0,0,0,0,0,0,0,0,5,0]
["QRV","R1K","LONDON NORTH WEST UNIVERSITY HEALTHCARE NHS TRUST",0,"NA","NA",0,0,0,0,0,0,0,0,"NA","NA",0,0,0,0,"NA","NA",0,0,0,0,0,0,0,0,0,0,0]
["QT1","NR3","NOTTINGHAM CITYCARE PARTNERSHIP",0,"NA","NA",0,0,0,0,0,0,0,3,"NA","NA",0,0,0,0,"NA","NA",0,0,0,0,0,0,0,0,0,0,0]
["QT6","REF","ROYAL CORNWALL HOSPITALS NHS TRUST",21,1,0,18,3,0,0,0,0,19,0,1,0,17,2,0,19,1,0,19,0,0,0,2,0,0,0,0,19,0]
["QU9","RXQ","BUCKINGHAMSHIRE HEALTHCARE NHS TRUST",2,"*","*","*","*","*","*","*","*",2,2,"*","*","*","*","*",2,"*","*","*","*","*","*","*","*","*","*","*","*","*"]
["QU9","RTH","OXFORD UNIVERSITY HOSPITALS NHS FOUNDATION TRUST",78,0.97435897435897434,0,"*","*","*","*","*","*",78,0,1,0,"*","*","*",78,1,0,78,0,0,"*","*","*","*","*","*","*","*"]
["QUA","RL4","THE ROYAL WOLVERHAMPTON NHS TRUST",0,"NA","NA",0,0,0,0,0,0,0,0,"NA","NA",0,0,0,0,"NA","NA",0,0,0,0,0,0,0,0,0,0,0]
["QUA","RBK","WALSALL HEALTHCARE NHS TRUST",1,"*","*","*","*","*","*","*","*",1,1,"*","*","*","*","*",0,"NA","NA",0,0,0,"*","*","*","*","*","*","*","*"]
["QUE","RGT","CAMBRIDGE UNIVERSITY HOSPITALS NHS FOUNDATION TRUST",3,"*","*","*","*","*","*","*","*",2,27,"*","*","*","*","*",3,"*","*","*","*","*","*","*","*","*","*","*","*","*"]
["QUE","RT1","CAMBRIDGESHIRE AND PETERBOROUGH NHS FOUNDATION TRUST",6,0.83333333333333337,0.16666666666666666,"*","*","*","*","*","*",6,6,1,0,"*","*","*",6,1,0,5,1,0,"*","*","*","*","*","*","*","*"]
["QVV","RDY","DORSET HEALTHCARE UNIVERSITY NHS FOUNDATION TRUST",26,0.76923076923076927,0.11538461538461539,10,10,3,2,1,0,26,0,0.88461538461538458,0.11538461538461539,15,8,3,26,1,0,22,4,0,0,0,0,0,0,0,26,0]
["QWE","RVR","EPSOM AND ST HELIER UNIVERSITY HOSPITALS NHS TRUST",3,"*","*","*","*","*","*","*","*",3,0,"*","*","*","*","*",0,"NA","NA",0,0,0,"*","*","*","*","*","*","*","*"]
["QWE","RJ7","ST GEORGE'S UNIVERSITY HOSPITALS NHS FOUNDATION TRUST",6,1,0,"*","*","*","*","*","*",6,0,1,0,"*","*","*",6,1,0,6,0,0,"*","*","*","*","*","*","*","*"]
["QWO","RCF","AIREDALE NHS FOUNDATION TRUST",0,"NA","NA",0,0,0,0,0,0,0,0,"NA","NA",0,0,0,0,"NA","NA",0,0,0,0,0,0,0,0,0,0,0]
["QWO","RAE","BRADFORD TEACHING HOSPITALS NHS FOUNDATION TRUST",0,"NA","NA",0,0,0,0,0,0,0,0,"NA","NA",0,0,0,0,"NA","NA",0,0,0,0,0,0,0,0,0,0,0]
["QWO","RY6","LEEDS COMMUNITY HEALTHCARE NHS TRUST",10,1,0,9,1,0,0,0,0,10,0,1,0,9,1,0,10,1,0,9,1,0,0,0,0,0,5,0,5,0]
["QWO","RXF","MID YORKSHIRE TEACHING NHS TRUST",10,1,0,10,0,0,0,0,0,6,43,1,0,6,0,0,10,1,0,10,0,0,1,0,0,0,0,0,9,0]
["QWU","RLT","GEORGE ELIOT HOSPITAL NHS TRUST",0,"NA","NA",0,0,0,0,0,0,0,0,"NA","NA",0,0,0,0,"NA","NA",0,0,0,0,0,0,0,0,0,0,0]
["QWU","RJC","SOUTH WARWICKSHIRE UNIVERSITY NHS FOUNDATION TRUST",4,"*","*","*","*","*","*","*","*",0,8,"NA","NA",0,0,0,0,"NA","NA",0,0,0,"*","*","*","*","*","*","*","*"]
["QWU","RKB","UNIVERSITY HOSPITALS COVENTRY AND WARWICKSHIRE NHS TRUST",0,"NA","NA",0,0,0,0,0,0,0,0,"NA","NA",0,0,0,0,"NA","NA",0,0,0,0,0,0,0,0,0,0,0]
["QXU","NDJ","FIRST COMMUNITY HEALTH AND CARE CIC",0,"NA","NA",0,0,0,0,0,0,0,5,"NA","NA",0,0,0,0,"NA","NA",0,0,0,0,0,0,0,0,0,0,0]
["QXU","RA2","ROYAL SURREY COUNTY HOSPITAL NHS FOUNDATION TRUST",0,"NA","NA",0,0,0,0,0,0,0,0,"NA","NA",0,0,0,0,"NA","NA",0,0,0,0,0,0,0,0,0,0,0]
["QYG","RXA","CHESHIRE AND WIRRAL PARTNERSHIP NHS FOUNDATION TRUST",0,"NA","NA",0,0,0,0,0,0,0,0,"NA","NA",0,0,0,0,"NA","NA",0,0,0,0,0,0,0,0,0,0,0]
["QYG","RJN","EAST CHESHIRE NHS TRUST",1,"*","*","*","*","*","*","*","*",1,9,"*","*","*","*","*",1,"*","*","*","*","*","*","*","*","*","*","*","*","*"]
["QYG","RW4","MERSEY CARE NHS FOUNDATION TRUST",35,1,0,33,2,0,0,0,0,0,0,"NA","NA",0,0,0,0,"NA","NA",0,0,0,0,0,0,2,0,0,33,0]
["QYG","RBT","MID CHESHIRE HOSPITALS NHS FOUNDATION TRUST",4,"*","*","*","*","*","*","*","*",4,0,"*","*","*","*","*",4,"*","*","*","*","*","*","*","*","*","*","*","*","*"]

{"sheet":"BS","index":4,"n_rows":72,"n_cols":59,"rows_kept":72,"cut":false,"hidden":true,"merged":[]}
[null,"Sort","Region (LO) Code","Region (LO) name","Trust code","Trust name","Site Code","Site Name",null,"Sort Lists:","Sort range…","Sort range…","Sort range…","Reference Region List:","Code…","Name…","Linked Region List:","Code…","Name…","Reference Lists:","Code…","Code…","Name…","Code…","Name…","Trusts Linked Lists:","Code…","Name…","Sites Linked Lists:",null,null,null,null,"CSV Headers"]
["Region (LO)",1,1,1,"-","-","-","-",null,null,"ICB Code","ICB Code","ICB Code",null,"QE1","LANCASHIRE AND SOUTH CUMBRIA ICB",null,"QE1","LANCASHIRE AND SOUTH CUMBRIA ICB",null,"QE1","RW5","LANCASHIRE & SOUTH CUMBRIA NHS FOUNDATION TRUST",null,null,null,"AXG","AIREDALE NHS FOUNDATION TRUST",null,null,null,null,null,"Breakdown","ICB Code","Trust Code","Trust Name","Q1 - Total Responses","Q1 - Percentage Positive","Q1 - Percentage Negative","Q1 - Very Good","Q1 - Good","Q1 - Neither Good nor Poor","Q1 - Poor","Q1 - Very Poor","Q1 - Don't Know","Q2 - Total Responses","Q2 - Total Eligible","Q2 - Percentage Positive","Q2 - Percentage Negative","Q2 - Yes definitely","Q2 - Yes to some extent","Q2 - No","Q3 - Total Responses","Q3 - Percentage Positive","Q3 - Percentage Negative","Q3 - Yes definitely","Q3 - Yes to some extent","Q3 - No"]
["Trusts",1,1,1,1,1,"-","-",null,null,"ICB Name","Organisation Code","Trust Code",null,"QF7","SOUTH YORKSHIRE ICB",null,"QF7","SOUTH YORKSHIRE ICB",null,"QF7","RXE","ROTHERHAM DONCASTER AND SOUTH HUMBER NHS FOUNDATION TRUST",null,null,null,"NDJ","BIRMINGHAM COMMUNITY HEALTHCARE NHS FOUNDATION TRUST"]
["Site",1,1,1,1,1,1,1,null,null,"Total Responses - Q1","Organisation Name","Trust Name",null,"QGH","HEREFORDSHIRE AND WORCESTERSHIRE ICB",null,"QGH","HEREFORDSHIRE AND WORCESTERSHIRE ICB",null,"QF7","RHQ","SHEFFIELD TEACHING HOSPITALS NHS FOUNDATION TRUST",null,null,null,"NNF","BOLTON NHS FOUNDATION TRUST",null,null,null,null,null,"Collection Mode","ICB Code","Trust Code","Trust Name","SMS","Smartphone","Smartphone After","Paper","Paper After","Telephone","Online","Other"]
[null,null,null,null,null,null,null,null,null,null,"Percentage Positive - Q1","Total Responses - Q1","Site Code",null,"QH8","MID AND SOUTH ESSEX ICB",null,"QH8","MID AND SOUTH ESSEX ICB",null,"QF7","RFR","THE ROTHERHAM NHS FOUNDATION TRUST",null,null,null,"NQA","BRADFORD TEACHING HOSPITALS NHS FOUNDATION TRUST"]
[null,null,null,null,null,null,null,null,null,null,"Percentage Negative - Q1","Percentage Positive - Q1","Site Name",null,"QHG","BEDFORDSHIRE, LUTON AND MILTON KEYNES ICB",null,"QHG","BEDFORDSHIRE, LUTON AND MILTON KEYNES ICB",null,"QHG","RD8","MILTON KEYNES UNIVERSITY HOSPITAL NHS FOUNDATION TRUST",null,null,null,"NR3","BUCKINGHAMSHIRE HEALTHCARE NHS TRUST"]
[null,null,null,null,null,null,null,null,null,null,"Very Good - Q1","Percentage Negative - Q1","Total Responses",null,"QHL","BIRMINGHAM AND SOLIHULL ICB",null,"QHL","BIRMINGHAM AND SOLIHULL ICB",null,"QHL","RYW","BIRMINGHAM COMMUNITY HEALTHCARE NHS FOUNDATION TRUST",null,null,null,"NR5","CAMBRIDGE UNIVERSITY HOSPITALS NHS FOUNDATION TRUST"]
[null,null,null,null,null,null,null,null,null,null,"Good - Q1","Very Good - Q1","Total Eligible",null,"QHM","NORTH EAST AND NORTH CUMBRIA ICB",null,"QHM","NORTH EAST AND NORTH CUMBRIA ICB",null,"QHM","RXP","COUNTY DURHAM AND DARLINGTON NHS FOUNDATION TRUST",null,null,null,"R0A","CAMBRIDGESHIRE AND PETERBOROUGH NHS FOUNDATION TRUST"]
[null,null,null,null,null,null,null,null,null,null,"Neither Good nor Poor - Q1","Good - Q1","Percentage Positive",null,"QJ2","DERBY AND DERBYSHIRE ICB",null,"QJ2","DERBY AND DERBYSHIRE ICB",null,"QHM","RR7","GATESHEAD HEALTH NHS FOUNDATION TRUST",null,null,null,"R0B","CHESHIRE AND WIRRAL PARTNERSHIP NHS FOUNDATION TRUST"]
[null,null,null,null,null,null,null,null,null,null,"Poor - Q1","Neither Good nor Poor - Q1","Percentage Negative",null,"QJG","SUFFOLK AND NORTH EAST ESSEX ICB",null,"QJG","SUFFOLK AND NORTH EAST ESSEX ICB",null,"QHM","RNN","NORTH CUMBRIA INTEGRATED CARE NHS FOUNDATION TRUST",null,null,null,"R1C","CITY HEALTH CARE PARTNERSHIP CIC"]
[null,null,null,null,null,null,null,null,null,null,"Very Poor - Q1","Poor - Q1","Very Good",null,"QJK","DEVON ICB",null,"QJK","DEVON ICB",null,"QHM","RVW","NORTH TEES AND HARTLEPOOL NHS FOUNDATION TRUST",null,null,null,"R1D","COUNTY DURHAM AND DARLINGTON NHS FOUNDATION TRUST"]
[null,null,null,null,null,null,null,null,null,null,"Don't Know - Q1","Very Poor - Q1","Good",null,"QJM","LINCOLNSHIRE ICB",null,"QJM","LINCOLNSHIRE ICB",null,"QHM","RTF","NORTHUMBRIA HEALTHCARE NHS FOUNDATION TRUST",null,null,null,"R1F","DERBYSHIRE COMMUNITY HEALTH SERVICES NHS FOUNDATION TRUST"]
[null,null,null,null,null,null,null,null,null,null,"Total Responses - Q2","Don't Know - Q1","Neither Good nor Poor",null,"QK1","LEICESTER, LEICESTERSHIRE AND RUTLAND ICB",null,"QK1","LEICESTER, LEICESTERSHIRE AND RUTLAND ICB",null,"QHM","RTR","SOUTH TEES HOSPITALS NHS FOUNDATION TRUST",null,null,null,"R1K","DORSET HEALTHCARE UNIVERSITY NHS FOUNDATION TRUST"]
[null,null,null,null,null,null,null,null,null,null,"Total Eligible - Q2","Total Responses - Q2","Poor",null,"QKK","SOUTH EAST LONDON ICB",null,"QKK","SOUTH EAST LONDON ICB",null,"QHM","R0B","SOUTH TYNESIDE AND SUNDERLAND NHS FOUNDATION TRUST",null,null,null,"RA2","EAST CHESHIRE NHS TRUST"]
[null,null,null,null,null,null,null,null,null,null,"Percentage Positive - Q2","Total Eligible - Q2","Very Poor",null,"QKS","KENT AND MEDWAY ICB",null,"QKS","KENT AND MEDWAY ICB",null,"QHM","RTD","THE NEWCASTLE UPON TYNE HOSPITALS NHS FOUNDATION TRUST",null,null,null,"RAE","EAST LONDON NHS FOUNDATION TRUST"]
[null,null,null,null,null,null,null,null,null,null,"Percentage Negative - Q2","Percentage Positive - Q2","Don't Know",null,"QM7","HERTFORDSHIRE AND WEST ESSEX ICB",null,"QM7","HERTFORDSHIRE AND WEST ESSEX ICB",null,"QJ2","RY8","DERBYSHIRE COMMUNITY HEALTH SERVICES NHS FOUNDATION TRUST",null,null,null,"RBK","EAST SUSSEX HEALTHCARE NHS TRUST"]
[null,null,null,null,null,null,null,null,null,null,"Yes definitely - Q2","Percentage Negative - Q2",null,null,"QMF","NORTH EAST LONDON ICB",null,"QMF","NORTH EAST LONDON ICB",null,"QJG","NQA","PROVIDE",null,null,null,"RBT","EPSOM AND ST HELIER UNIVERSITY HOSPITALS NHS TRUST"]
[null,null,null,null,null,null,null,null,null,null,"Yes to some extent - Q2","Yes definitely - Q2",null,null,"QMJ","NORTH CENTRAL LONDON ICB",null,"QMJ","NORTH CENTRAL LONDON ICB",null,"QJK","NR5","LIVEWELL SOUTHWEST",null,null,null,"RCB","FIRST COMMUNITY HEALTH AND CARE CIC"]
[null,null,null,null,null,null,null,null,null,null,"No - Q2","Yes to some extent - Q2",null,null,"QMM","NORFOLK AND WAVENEY ICB",null,"QMM","NORFOLK AND WAVENEY ICB",null,"QJM","RY5","LINCOLNSHIRE COMMUNITY HEALTH SERVICES NHS TRUST",null,null,null,"RCF","GATESHEAD HEALTH NHS FOUNDATION TRUST"]
[null,null,null,null,null,null,null,null,null,null,"Total Responses - Q3","No - Q2",null,null,"QNC","STAFFORDSHIRE AND STOKE-ON-TRENT ICB",null,"QNC","STAFFORDSHIRE AND STOKE-ON-TRENT ICB",null,"QK1","RWE","UNIVERSITY HOSPITALS OF LEICESTER NHS TRUST",null,null,null,"RD8","GEORGE ELIOT HOSPITAL NHS TRUST"]
[null,null,null,null,null,null,null,null,null,null,"Percentage Positive - Q3","Total Responses - Q3",null,null,"QNQ","FRIMLEY ICB",null,"QNQ","FRIMLEY ICB",null,"QKK","RJ1","GUY'S AND ST THOMAS' NHS FOUNDATION TRUST",null,null,null,"RDR","GLOUCESTERSHIRE HEALTH AND CARE NHS FOUNDATION TRUST"]
[null,null,null,null,null,null,null,null,null,null,"Percentage Negative - Q3","Percentage Positive - Q3",null,null,"QNX","SUSSEX ICB",null,"QNX","SUSSEX ICB",null,"QKK","RJZ","KING'S COLLEGE HOSPITAL NHS FOUNDATION TRUST",null,null,null,"RDY","GUY'S AND ST THOMAS' NHS FOUNDATION TRUST"]
[null,null,null,null,null,null,null,null,null,null,"Yes definitely - Q3","Percentage Negative - Q3",null,null,"QOC","SHROPSHIRE, TELFORD AND WREKIN ICB",null,"QOC","SHROPSHIRE, TELFORD AND WREKIN ICB",null,"QM7","RY4","HERTFORDSHIRE COMMUNITY NHS TRUST",null,null,null,"REF","HERTFORDSHIRE COMMUNITY NHS TRUST"]
[null,null,null,null,null,null,null,null,null,null,"Yes to some extent - Q3","Yes definitely - Q3",null,null,"QOP","GREATER MANCHESTER ICB",null,"QOP","GREATER MANCHESTER ICB",null,"QMF","RWK","EAST LONDON NHS FOUNDATION TRUST",null,null,null,"RFR","HOMERTON HEALTHCARE NHS FOUNDATION TRUST"]
[null,null,null,null,null,null,null,null,null,null,"No - Q3","Yes to some extent - Q3",null,null,"QOQ","HUMBER AND NORTH YORKSHIRE ICB",null,"QOQ","HUMBER AND NORTH YORKSHIRE ICB",null,"QMF","RQX","HOMERTON HEALTHCARE NHS FOUNDATION TRUST",null,null,null,"RGT","IMPERIAL COLLEGE HEALTHCARE NHS TRUST"]
[null,null,null,null,null,null,null,null,null,null,null,"No - Q3",null,null,"QOX","BATH AND NORTH EAST SOMERSET, SWINDON AND WILTSHIRE ICB",null,"QOX","BATH AND NORTH EAST SOMERSET, SWINDON AND WILTSHIRE ICB",null,"QMF","Y05455","NELFT OOH",null,null,null,"RHQ","ISLE OF WIGHT NHS TRUST"]
[null,null,null,null,null,null,null,null,null,null,null,"SMS - Q1",null,null,"QPM","NORTHAMPTONSHIRE ICB",null,"QPM","NORTHAMPTONSHIRE ICB",null,"QMJ","RRV","UNIVERSITY COLLEGE LONDON HOSPITALS NHS FOUNDATION TRUST",null,null,null,"RJ1","KING'S COLLEGE HOSPITAL NHS FOUNDATION TRUST"]
[null,null,null,null,null,null,null,null,null,null,null,"Smartphone - Q1",null,null,"QR1","GLOUCESTERSHIRE ICB",null,"QR1","GLOUCESTERSHIRE ICB",null,"QMM","RY3","NORFOLK COMMUNITY HEALTH AND CARE NHS TRUST",null,null,null,"RJ7","LANCASHIRE & SOUTH CUMBRIA NHS FOUNDATION TRUST"]
[null,null,null,null,null,null,null,null,null,null,null,"Smartphone After - Q1",null,null,"QRL","HAMPSHIRE AND ISLE OF WIGHT ICB",null,"QRL","HAMPSHIRE AND ISLE OF WIGHT ICB",null,"QNC","RRE","MIDLANDS PARTNERSHIP NHS FOUNDATION TRUST",null,null,null,"RJC","LEEDS COMMUNITY HEALTHCARE NHS TRUST"]
[null,null,null,null,null,null,null,null,null,null,null,"Paper - Q1",null,null,"QRV","NORTH WEST LONDON ICB",null,"QRV","NORTH WEST LONDON ICB",null,"QNX","RXC","EAST SUSSEX HEALTHCARE NHS TRUST",null,null,null,"RJL","LINCOLNSHIRE COMMUNITY HEALTH SERVICES NHS TRUST"]
[null,null,null,null,null,null,null,null,null,null,null,"Paper After - Q1",null,null,"QSL","SOMERSET ICB",null,"QSL","SOMERSET ICB",null,"QNX","RDR","SUSSEX COMMUNITY NHS FOUNDATION TRUST",null,null,null,"RJN","LIVEWELL SOUTHWEST"]
[null,null,null,null,null,null,null,null,null,null,null,"Telephone - Q1",null,null,"QT1","NOTTINGHAM AND NOTTINGHAMSHIRE ICB",null,"QT1","NOTTINGHAM AND NOTTINGHAMSHIRE ICB",null,"QOC","R1D","SHROPSHIRE COMMUNITY HEALTH NHS TRUST",null,null,null,"RJZ","LONDON NORTH WEST UNIVERSITY HEALTHCARE NHS TRUST"]
[null,null,null,null,null,null,null,null,null,null,null,"Online - Q1",null,null,"QT6","CORNWALL AND THE ISLES OF SCILLY ICB",null,"QT6","CORNWALL AND THE ISLES OF SCILLY ICB",null,"QOP","RMC","BOLTON NHS FOUNDATION TRUST",null,null,null,"RKB","MANCHESTER UNIVERSITY NHS FOUNDATION TRUST"]
[null,null,null,null,null,null,null,null,null,null,null,"Other - Q1",null,null,"QU9","BUCKINGHAMSHIRE, OXFORDSHIRE AND BERKSHIRE WEST ICB",null,"QU9","BUCKINGHAMSHIRE, OXFORDSHIRE AND BERKSHIRE WEST ICB",null,"QOP","R0A","MANCHESTER UNIVERSITY NHS FOUNDATION TRUST",null,null,null,"RL4","MERSEY CARE NHS FOUNDATION TRUST"]
[null,null,null,null,null,null,null,null,null,null,null,"SMS - Q2",null,null,"QUA","BLACK COUNTRY ICB",null,"QUA","BLACK COUNTRY ICB",null,"QOP","RM3","NORTHERN CARE ALLIANCE NHS FOUNDATION TRUST",null,null,null,"RLT","MID CHESHIRE HOSPITALS NHS FOUNDATION TRUST"]
[null,null,null,null,null,null,null,null,null,null,null,"Smartphone - Q2",null,null,"QUE","CAMBRIDGESHIRE AND PETERBOROUGH ICB",null,"QUE","CAMBRIDGESHIRE AND PETERBOROUGH ICB",null,"QOP","RMP","TAMESIDE AND GLOSSOP INTEGRATED CARE NHS FOUNDATION TRUST",null,null,null,"RM3","MID YORKSHIRE TEACHING NHS TRUST"]
[null,null,null,null,null,null,null,null,null,null,null,"Smartphone After - Q2",null,null,"QUY","BRISTOL, NORTH SOMERSET AND SOUTH GLOUCESTERSHIRE ICB",null,"QUY","BRISTOL, NORTH SOMERSET AND SOUTH GLOUCESTERSHIRE ICB",null,"QOP","RRF","WRIGHTINGTON, WIGAN AND LEIGH NHS FOUNDATION TRUST",null,null,null,"RMC","MIDLANDS PARTNERSHIP NHS FOUNDATION TRUST"]
[null,null,null,null,null,null,null,null,null,null,null,"Paper - Q2",null,null,"QVV","DORSET ICB",null,"QVV","DORSET ICB",null,"QOQ","NNF","CITY HEALTH CARE PARTNERSHIP CIC",null,null,null,"RMP","MILTON KEYNES UNIVERSITY HOSPITAL NHS FOUNDATION TRUST"]
[null,null,null,null,null,null,null,null,null,null,null,"Paper After - Q2",null,null,"QWE","SOUTH WEST LONDON ICB",null,"QWE","SOUTH WEST LONDON ICB",null,"QOQ","RJL","NORTHERN LINCOLNSHIRE AND GOOLE NHS FOUNDATION TRUST",null,null,null,"RNN","NELFT OOH"]
[null,null,null,null,null,null,null,null,null,null,null,"Telephone - Q2",null,null,"QWO","WEST YORKSHIRE ICB",null,"QWO","WEST YORKSHIRE ICB",null,"QOQ","RCB","YORK AND SCARBOROUGH TEACHING HOSPITALS NHS FOUNDATION TRUST",null,null,null,"RP1","NORFOLK COMMUNITY HEALTH AND CARE NHS TRUST"]
[null,null,null,null,null,null,null,null,null,null,null,"Online - Q2",null,null,"QWU","COVENTRY AND WARWICKSHIRE ICB",null,"QWU","COVENTRY AND WARWICKSHIRE ICB",null,"QOX","AXG","WILTSHIRE HEALTH & CARE",null,null,null,"RQX","NORTH CUMBRIA INTEGRATED CARE NHS FOUNDATION TRUST"]
[null,null,null,null,null,null,null,null,null,null,null,"Other - Q2",null,null,"QXU","SURREY HEARTLANDS ICB",null,"QXU","SURREY HEARTLANDS ICB",null,"QPM","RP1","NORTHAMPTONSHIRE HEALTHCARE NHS FOUNDATION TRUST",null,null,null,"RR7","NORTH TEES AND HARTLEPOOL NHS FOUNDATION TRUST"]
[null,null,null,null,null,null,null,null,null,null,null,"SMS - Q3",null,null,"QYG","CHESHIRE AND MERSEYSIDE ICB",null,"QYG","CHESHIRE AND MERSEYSIDE ICB",null,"QR1","RTQ","GLOUCESTERSHIRE HEALTH AND CARE NHS FOUNDATION TRUST",null,null,null,"RRE","NORTHAMPTONSHIRE HEALTHCARE NHS FOUNDATION TRUST"]
[null,null,null,null,null,null,null,null,null,null,null,"Smartphone - Q3",null,null,null,null,null,null,null,null,"QRL","R1F","ISLE OF WIGHT NHS TRUST",null,null,null,"RRF","NORTHERN CARE ALLIANCE NHS FOUNDATION TRUST"]
[null,null,null,null,null,null,null,null,null,null,null,"Smartphone After - Q3",null,null,null,null,null,null,null,null,"QRL","R1C","SOLENT NHS TRUST",null,null,null,"RRV","NORTHERN LINCOLNSHIRE AND GOOLE NHS FOUNDATION TRUST"]
[null,null,null,null,null,null,null,null,null,null,null,"Paper - Q3",null,null,null,null,null,null,null,null,"QRL","RW1","SOUTHERN HEALTH NHS FOUNDATION TRUST",null,null,null,"RT1","NORTHUMBRIA HEALTHCARE NHS FOUNDATION TRUST"]
[null,null,null,null,null,null,null,null,null,null,null,"Paper After - Q3",null,null,null,null,null,null,null,null,"QRV","RYJ","IMPERIAL COLLEGE HEALTHCARE NHS TRUST",null,null,null,"RTD","NOTTINGHAM CITYCARE PARTNERSHIP"]
[null,null,null,null,null,null,null,null,null,null,null,"Telephone - Q3",null,null,null,null,null,null,null,null,"QRV","R1K","LONDON NORTH WEST UNIVERSITY HEALTHCARE NHS TRUST",null,null,null,"RTF","OXFORD UNIVERSITY HOSPITALS NHS FOUNDATION TRUST"]
[null,null,null,null,null,null,null,null,null,null,null,"Online - Q3",null,null,null,null,null,null,null,null,"QT1","NR3","NOTTINGHAM CITYCARE PARTNERSHIP",null,null,null,"RTH","PROVIDE"]
[null,null,null,null,null,null,null,null,null,null,null,"Other - Q3",null,null,null,null,null,null,null,null,"QT6","REF","ROYAL CORNWALL HOSPITALS NHS TRUST",null,null,null,"RTQ","ROTHERHAM DONCASTER AND SOUTH HUMBER NHS FOUNDATION TRUST"]
[null,null,null,null,null,null,null,null,null,null,null,null,null,null,null,null,null,null,null,null,"QU9","RXQ","BUCKINGHAMSHIRE HEALTHCARE NHS TRUST",null,null,null,"RTR","ROYAL CORNWALL HOSPITALS NHS TRUST"]
[null,null,null,null,null,null,null,null,null,null,null,null,null,null,null,null,null,null,null,null,"QU9","RTH","OXFORD UNIVERSITY HOSPITALS NHS FOUNDATION TRUST",null,null,null,"RVR","ROYAL SURREY COUNTY HOSPITAL NHS FOUNDATION TRUST"]
[null,null,null,null,null,null,null,null,null,null,null,null,null,null,null,null,null,null,null,null,"QUA","RL4","THE ROYAL WOLVERHAMPTON NHS TRUST",null,null,null,"RVW","SHEFFIELD TEACHING HOSPITALS NHS FOUNDATION TRUST"]
[null,null,null,null,null,null,null,null,null,null,null,null,null,null,null,null,null,null,null,null,"QUA","RBK","WALSALL HEALTHCARE NHS TRUST",null,null,null,"RW1","SHROPSHIRE COMMUNITY HEALTH NHS TRUST"]
[null,null,null,null,null,null,null,null,null,null,null,null,null,null,null,null,null,null,null,null,"QUE","RGT","CAMBRIDGE UNIVERSITY HOSPITALS NHS FOUNDATION TRUST",null,null,null,"RW4","SOLENT NHS TRUST"]
[null,null,null,null,null,null,null,null,null,null,null,null,null,null,null,null,null,null,null,null,"QUE","RT1","CAMBRIDGESHIRE AND PETERBOROUGH NHS FOUNDATION TRUST",null,null,null,"RW5","SOUTH TEES HOSPITALS NHS FOUNDATION TRUST"]
[null,null,null,null,null,null,null,null,null,null,null,null,null,null,null,null,null,null,null,null,"QVV","RDY","DORSET HEALTHCARE UNIVERSITY NHS FOUNDATION TRUST",null,null,null,"RWE","SOUTH TYNESIDE AND SUNDERLAND NHS FOUNDATION TRUST"]
[null,null,null,null,null,null,null,null,null,null,null,null,null,null,null,null,null,null,null,null,"QWE","RVR","EPSOM AND ST HELIER UNIVERSITY HOSPITALS NHS TRUST",null,null,null,"RWK","SOUTH WARWICKSHIRE UNIVERSITY NHS FOUNDATION TRUST"]
[null,null,null,null,null,null,null,null,null,null,null,null,null,null,null,null,null,null,null,null,"QWE","RJ7","ST GEORGE'S UNIVERSITY HOSPITALS NHS FOUNDATION TRUST",null,null,null,"RXA","SOUTHERN HEALTH NHS FOUNDATION TRUST"]
[null,null,null,null,null,null,null,null,null,null,null,null,null,null,null,null,null,null,null,null,"QWO","RCF","AIREDALE NHS FOUNDATION TRUST",null,null,null,"RXC","ST GEORGE'S UNIVERSITY HOSPITALS NHS FOUNDATION TRUST"]
[null,null,null,null,null,null,null,null,null,null,null,null,null,null,null,null,null,null,null,null,"QWO","RAE","BRADFORD TEACHING HOSPITALS NHS FOUNDATION TRUST",null,null,null,"RXE","SUSSEX COMMUNITY NHS FOUNDATION TRUST"]
[null,null,null,null,null,null,null,null,null,null,null,null,null,null,null,null,null,null,null,null,"QWO","RY6","LEEDS COMMUNITY HEALTHCARE NHS TRUST",null,null,null,"RXF","TAMESIDE AND GLOSSOP INTEGRATED CARE NHS FOUNDATION TRUST"]
[null,null,null,null,null,null,null,null,null,null,null,null,null,null,null,null,null,null,null,null,"QWO","RXF","MID YORKSHIRE TEACHING NHS TRUST",null,null,null,"RXP","THE NEWCASTLE UPON TYNE HOSPITALS NHS FOUNDATION TRUST"]
[null,null,null,null,null,null,null,null,null,null,null,null,null,null,null,null,null,null,null,null,"QWU","RLT","GEORGE ELIOT HOSPITAL NHS TRUST",null,null,null,"RXQ","THE ROTHERHAM NHS FOUNDATION TRUST"]
[null,null,null,null,null,null,null,null,null,null,null,null,null,null,null,null,null,null,null,null,"QWU","RJC","SOUTH WARWICKSHIRE UNIVERSITY NHS FOUNDATION TRUST",null,null,null,"RY3","THE ROYAL WOLVERHAMPTON NHS TRUST"]
[null,null,null,null,null,null,null,null,null,null,null,null,null,null,null,null,null,null,null,null,"QWU","RKB","UNIVERSITY HOSPITALS COVENTRY AND WARWICKSHIRE NHS TRUST",null,null,null,"RY4","UNIVERSITY COLLEGE LONDON HOSPITALS NHS FOUNDATION TRUST"]
[null,null,null,null,null,null,null,null,null,null,null,null,null,null,null,null,null,null,null,null,"QXU","NDJ","FIRST COMMUNITY HEALTH AND CARE CIC",null,null,null,"RY5","UNIVERSITY HOSPITALS COVENTRY AND WARWICKSHIRE NHS TRUST"]
[null,null,null,null,null,null,null,null,null,null,null,null,null,null,null,null,null,null,null,null,"QXU","RA2","ROYAL SURREY COUNTY HOSPITAL NHS FOUNDATION TRUST",null,null,null,"RY6","UNIVERSITY HOSPITALS OF LEICESTER NHS TRUST"]
[null,null,null,null,null,null,null,null,null,null,null,null,null,null,null,null,null,null,null,null,"QYG","RXA","CHESHIRE AND WIRRAL PARTNERSHIP NHS FOUNDATION TRUST",null,null,null,"RY8","WALSALL HEALTHCARE NHS TRUST"]
[null,null,null,null,null,null,null,null,null,null,null,null,null,null,null,null,null,null,null,null,"QYG","RJN","EAST CHESHIRE NHS TRUST",null,null,null,"RYJ","WILTSHIRE HEALTH & CARE"]
[null,null,null,null,null,null,null,null,null,null,null,null,null,null,null,null,null,null,null,null,"QYG","RW4","MERSEY CARE NHS FOUNDATION TRUST",null,null,null,"RYW","WRIGHTINGTON, WIGAN AND LEIGH NHS FOUNDATION TRUST"]
[null,null,null,null,null,null,null,null,null,null,null,null,null,null,null,null,null,null,null,null,"QYG","RBT","MID CHESHIRE HOSPITALS NHS FOUNDATION TRUST",null,null,null,"Y05455","YORK AND SCARBOROUGH TEACHING HOSPITALS NHS FOUNDATION TRUST"]